bitfinex/quotes_ETHUSD_20260131
["timestamp","ask_amount","ask_price","bid_price","bid_amount"]
[1769850021907,0.001,2648.5,2645.9,0.2335703]
[1769850021908,14.0,2648.4,2645.9,0.2335703]
[1769850022124,14.0,2648.3,2645.9,0.80857423]
[1769850022340,0.1024,2647.8,2645.9,1.753403]
[1769850022542,14.1024,2647.4,2645.9,1.753403]
[1769850022714,6.704893,2647.3,2645.9,1.753403]
[1769850023047,16.704893,2647.3,2646.0,0.55329542]
[1769850023840,0.1024,2647.1,2646.0,0.55329542]
[1769850024015,0.001,2648.5,2646.1,0.2335703]
[1769850024016,0.1024,2648.3,2646.1,0.2335703]
[1769850024215,0.1024,2647.7,2646.1,0.2335703]
[1769850024445,14.0,2648.0,2646.1,0.2335703]
[1769850024612,2.537323,2647.9,2646.1,5.17262777]
[1769850024814,12.537323,2647.9,2646.1,5.17262777]
[1769850025221,0.1024,2647.8,2646.1,5.17262777]
[1769850025916,0.1024,2647.8,2646.3,0.2335703]
[1769850026143,0.1024,2647.8,2646.3,1.22320856]
[1769850027251,16.783647,2647.7,2646.3,0.98963826]
[1769850027459,14.0,2648.0,2646.3,0.98963826]
[1769850027645,14.947798,2647.9,2646.4,0.2335703]
[1769850027964,8.69544,2647.8,2646.7,0.94457248]
[1769850028464,8.69544,2647.8,2646.8,0.792]
[1769850028669,4.896721,2647.8,2646.8,0.792]
[1769850028872,4.730138,2647.8,2646.8,0.792]
[1769850029163,0.001,2647.5,2646.8,0.792]
[1769850029363,0.001,2647.5,2646.8,0.98901428]
[1769850029959,0.001,2647.5,2646.9,0.94450111]
[1769850030940,14.0,2648.0,2646.9,0.94450111]
[1769850034365,0.1024,2648.2,2646.8,0.98901428]
[1769850034366,14.0,2647.8,2646.8,0.98901428]
[1769850034767,17.529688,2647.7,2646.8,0.71644991]
[1769850035083,14.0,2647.7,2646.6,0.94460139]
[1769850035246,14.0,2647.7,2646.7,0.792]
[1769850036778,14.0,2648.4,2646.8,0.2335703]
[1769850036955,16.707559,2648.3,2646.8,0.80842721]
[1769850037155,14.0,2648.0,2646.8,0.80842721]
[1769850037553,2.332538,2647.9,2646.8,0.80842721]
[1769850037777,12.332538,2647.9,2646.8,0.80842721]
[1769850037954,12.332538,2647.9,2646.9,0.25449976]
[1769850039269,14.0,2647.8,2646.8,0.57485691]
[1769850039577,19.998394,2647.7,2646.7,1.73656753]
[1769850039747,5.699349,2647.6,2646.7,1.73656753]
[1769850040070,15.699349,2647.6,2646.7,1.34349992]
[1769850041985,14.0,2647.3,2646.1,1.89582547]
[1769850042278,14.0,2647.1,2646.3,0.9446987]
[1769850042672,14.0,2647.4,2646.4,1.17823152]
[1769850042877,0.1024,2647.6,2646.5,0.9446311]
[1769850043076,15.965096,2647.6,2646.5,1.44032779]
[1769850043282,0.1024,2647.4,2646.6,0.94460641]
[1769850043587,0.1024,2647.4,2646.6,0.2335703]
[1769850044085,0.1024,2647.4,2646.5,0.49569669]
[1769850044288,0.1024,2647.4,2646.3,0.94471522]
[1769850044289,5.1812,2647.3,2646.4,1.17824211]
[1769850046166,0.1024,2647.5,2646.4,1.17824211]
[1769850046354,7.214848,2647.4,2646.4,1.17824211]
[1769850046549,20.752804,2647.4,2646.2,4.57097928]
[1769850046749,5.594015,2647.3,2646.4,0.9446641]
[1769850046951,29.594015,2647.3,2646.4,0.9446641]
[1769850047187,14.0,2647.3,2646.4,1.49621614]
[1769850047491,0.1024,2647.5,2646.5,0.94463567]
[1769850047643,6.692205,2647.4,2646.5,0.94463567]
[1769850047845,6.692205,2647.4,2646.5,0.2335703]
[1769850048050,6.692205,2647.4,2646.5,0.78443034]
[1769850049607,17.348007,2647.4,2646.5,0.55086004]
[1769850049891,5.533416,2647.3,2646.5,0.55086004]
[1769850050193,15.533416,2647.3,2646.5,0.55086004]
[1769850050694,14.0,2647.4,2646.5,0.55086004]
[1769850051153,5.533416,2647.3,2646.4,0.94465362]
[1769850051354,15.533416,2647.3,2646.4,0.94465362]
[1769850051888,15.533416,2647.3,2646.7,0.0011]
[1769850052065,29.533416,2647.3,2646.7,0.0011]
[1769850052263,17.992046,2647.2,2646.7,0.0011]
[1769850052590,14.0,2647.2,2646.7,0.0011]
[1769850053197,14.0,2647.0,2645.8,0.0011]
[1769850053497,14.0,2646.8,2645.9,0.94484312]
[1769850053660,11.546649,2646.7,2645.9,0.792]
[1769850053864,14.0,2647.3,2646.0,0.94482237]
[1769850054159,14.1034,2647.5,2646.1,0.2335703]
[1769850054370,17.276012,2647.4,2646.1,0.80968807]
[1769850054680,2.461815,2647.3,2646.1,0.80968807]
[1769850054880,12.461815,2647.3,2646.1,0.73412228]
[1769850055089,14.0,2647.3,2646.1,0.73412228]
[1769850055256,24.0,2647.3,2646.1,0.73412228]
[1769850055452,14.0,2647.3,2646.1,0.73412228]
[1769850055965,17.40118,2647.2,2646.2,0.94475096]
[1769850056269,14.0,2647.2,2646.3,0.52998726]
[1769850059384,14.0,2647.2,2646.4,1.17824986]
[1769850059959,0.001,2647.5,2646.4,1.17824986]
[1769850060283,14.001,2647.5,2646.4,1.17824986]
[1769850060486,14.0,2647.3,2646.6,0.2335703]
[1769850060784,14.0,2647.1,2646.7,0.792]
[1769850060983,14.0,2646.9,2646.7,0.792]
[1769850061972,14.0,2647.4,2646.7,0.792]
[1769850062167,21.752941,2647.3,2646.7,0.792]
[1769850062367,16.41658,2647.2,2646.3,0.52998726]
[1769850062560,14.0,2647.0,2645.8,0.0011]
[1769850062761,14.0,2646.8,2645.9,0.792]
[1769850062965,14.0,2646.6,2645.8,0.0011]
[1769850063281,14.0,2646.4,2645.5,0.7931]
[1769850063477,13.99945,2646.2,2645.5,0.7931]
[1769850063663,13.99945,2646.0,2645.5,0.7931]
[1769850063865,13.99945,2646.0,2645.5,0.0011]
[1769850064065,13.99945,2645.8,2645.4,0.0011]
[1769850064269,13.99945,2645.8,2645.0,1119.81625379]
[1769850064480,13.69020364,2645.6,2645.0,1119.81625379]
[1769850064704,13.69020364,2645.4,2645.0,1118.37553579]
[1769850064862,13.69020364,2645.4,2645.0,1102.00636179]
[1769850065058,13.69020364,2645.2,2645.0,1102.00636179]
[1769850065303,4.37429,2645.1,2645.0,1102.00636179]
[1769850065509,14.37429,2645.1,2645.0,1102.00636179]
[1769850066210,28.16689364,2645.1,2645.0,1076.17106125]
[1769850066498,13.79260364,2645.5,2645.0,1076.17106125]
[1769850066697,0.1024,2645.3,2645.0,1076.17106125]
[1769850067887,13.09314419,2645.3,2645.0,1076.17106125]
[1769850070177,13.09314419,2645.3,2645.0,1062.17106125]
[1769850071485,0.1024,2645.5,2645.0,1062.17106125]
[1769850071663,0.1024,2645.3,2645.1,0.792]
[1769850071862,0.1024,2645.4,2645.1,0.792]
[1769850072064,3.123178,2645.3,2645.1,0.792]
[1769850072292,2.577378,2645.3,2645.1,0.792]
[1769850072697,0.1024,2645.4,2645.0,1062.17106125]
[1769850072698,13.09314419,2645.2,2645.0,985.5342124]
[1769850072869,13.09314419,2645.2,2645.0,982.6721574]
[1769850073069,7.194433,2645.1,2645.0,980.71341219]
[1769850073270,7.194433,2645.1,2645.0,972.14287684]
[1769850073271,10.0,2645.1,2645.0,972.14287684]
[1769850073468,13.09314419,2645.2,2645.0,969.17213955]
[1769850074697,13.09314419,2645.2,2645.0,969.09652805]
[1769850076402,0.1024,2645.4,2645.0,969.09652805]
[1769850076601,15.041454,2645.4,2645.0,969.09652805]
[1769850076773,10.1024,2645.4,2645.0,969.09652805]
[1769850076972,0.001,2645.2,2645.0,969.09652805]
[1769850079811,0.001,2645.2,2645.1,3.87]
[1769850080317,12.99074419,2645.9,2645.3,3.87]
[1769850080529,12.99074419,2645.9,2645.4,3.87]
[1769850080729,12.99074419,2647.0,2645.4,11.0496]
[1769850081018,12.99074419,2646.8,2645.5,3.87]
[1769850081187,12.99074419,2646.6,2645.5,3.87]
[1769850081386,17.00334119,2646.5,2645.6,11.0496]
[1769850081603,10.556012,2646.4,2645.6,11.0496]
[1769850081781,7.570058,2646.4,2645.6,11.0496]
[1769850082107,21.35935,2646.4,2645.6,11.0496]
[1769850082403,0.1024,2646.3,2645.6,11.0496]
[1769850082579,19.852006,2646.3,2645.5,1.57116]
[1769850082779,0.1024,2646.1,2645.4,3.87]
[1769850082981,4.509439,2646.0,2645.5,11.0496]
[1769850083887,0.1024,2646.1,2645.5,11.0496]
[1769850084085,0.1024,2646.3,2645.5,11.0496]
[1769850084301,0.1024,2645.9,2645.5,11.0496]
[1769850084497,3.372732,2645.8,2645.5,11.0496]
[1769850084703,0.1024,2645.7,2645.5,11.0496]
[1769850085782,0.1024,2646.0,2645.4,0.792]
[1769850086108,10.0,2646.3,2645.4,4.662]
[1769850086308,12.99074419,2646.7,2645.5,10.99562468]
[1769850086483,8.471325,2646.6,2645.6,3.86649]
[1769850086678,18.471325,2646.6,2645.6,3.86649]
[1769850087919,0.1024,2646.5,2645.6,3.86649]
[1769850088101,5.914366,2646.4,2645.6,3.86649]
[1769850088307,9.703638,2646.4,2645.6,3.86649]
[1769850088514,13.09314419,2646.2,2645.1,3.87]
[1769850088822,13.09314419,2646.0,2645.1,3.87]
[1769850089007,11.42187,2645.9,2645.2,0.792]
[1769850089184,24.41261419,2645.9,2645.2,0.792]
[1769850089381,0.1024,2645.7,2645.3,0.0011]
[1769850089581,0.1024,2645.6,2645.3,0.0011]
[1769850089810,10.1024,2645.6,2645.3,0.0011]
[1769850090005,0.1024,2645.6,2645.3,0.0011]
[1769850091684,10.0,2645.8,2645.3,0.0011]
[1769850091685,0.1024,2645.7,2645.3,0.0011]
[1769850091987,0.1024,2645.5,2645.3,0.0011]
[1769850092184,10.0,2646.0,2645.5,2.15034]
[1769850092494,10.674887,2646.1,2645.5,2.14843]
[1769850094224,0.1024,2646.0,2645.5,2.14843]
[1769850094381,18.648724,2645.9,2645.6,3.87]
[1769850094583,13.09314419,2646.0,2645.1,3.718406]
[1769850094778,0.1024,2645.7,2645.1,3.718406]
[1769850095012,0.1024,2645.5,2645.1,0.56519793]
[1769850095214,5.238299,2645.4,2645.0,969.09652805]
[1769850095513,6.455191,2645.4,2645.0,969.09652805]
[1769850095811,0.1024,2645.2,2645.0,969.09652805]
[1769850096034,6.303762,2645.1,2645.0,969.00176405]
[1769850096181,4.840604,2645.1,2645.0,969.00176405]
[1769850104049,4.840604,2645.1,2645.0,968.90700005]
[1769850104248,4.840604,2645.1,2645.0,968.79707305]
[1769850105351,4.840604,2645.1,2645.0,968.66061205]
[1769850106856,4.840604,2645.1,2645.0,968.64166005]
[1769850107758,0.001,2645.5,2645.1,13.94948481]
[1769850107940,13.19441957,2646.4,2645.2,14.74148481]
[1769850108133,6.714055,2646.3,2645.2,14.74148481]
[1769850108333,16.714055,2646.3,2645.3,15.42363329]
[1769850109845,0.1024,2646.2,2645.3,15.42363329]
[1769850110024,0.1024,2646.0,2645.3,15.42363329]
[1769850110224,0.1024,2645.8,2645.3,15.42363329]
[1769850110457,10.1024,2645.8,2645.4,15.57104814]
[1769850110644,0.1024,2645.8,2645.4,15.57104814]
[1769850111348,0.1024,2646.3,2645.4,15.57104814]
[1769850111557,11.249969,2646.3,2645.5,0.792]
[1769850111855,0.1024,2646.1,2645.5,0.792]
[1769850112049,0.1024,2645.9,2645.5,0.792]
[1769850112256,0.1024,2645.7,2645.5,0.792]
[1769850112421,0.1024,2645.7,2645.5,2.42330481]
[1769850114526,0.001,2646.0,2645.5,2.42330481]
[1769850114727,0.1024,2645.8,2645.5,2.34770903]
[1769850115572,0.793,2646.4,2645.6,13.94948481]
[1769850115733,2.781013,2646.3,2645.6,14.51468274]
[1769850116061,2.250553,2646.3,2645.6,14.51468274]
[1769850116228,6.039365,2646.3,2645.6,14.51468274]
[1769850118440,0.1034,2646.4,2645.6,14.51468274]
[1769850118749,3.803966,2646.3,2645.8,13.94948481]
[1769850119145,3.803966,2646.3,2645.7,1.5231087]
[1769850119465,3.803966,2646.3,2645.6,0.56519793]
[1769850119647,3.803966,2646.3,2645.7,0.792]
[1769850120675,3.803966,2646.3,2645.7,1.35719793]
[1769850122051,3.803966,2646.3,2645.7,0.792]
[1769850122780,2.008079,2646.3,2645.7,0.792]
[1769850123076,0.001,2646.4,2645.8,13.94948481]
[1769850123253,0.001,2646.4,2646.0,13.94948481]
[1769850125043,0.1034,2646.4,2646.0,13.94948481]
[1769850125781,0.001,2646.1,2646.0,13.94948481]
[1769850127364,0.001,2646.1,2645.0,971.38078439]
[1769850127569,0.001,2646.1,2645.2,12.71037343]
[1769850127875,0.001,2646.1,2645.3,1.35023734]
[1769850128245,0.001,2646.1,2645.3,14.26517677]
[1769850130656,0.1024,2646.2,2645.4,12.91493943]
[1769850131445,0.1034,2646.4,2645.4,12.91493943]
[1769850132499,0.1034,2646.4,2645.6,12.91493943]
[1769850132649,0.1034,2646.4,2645.8,12.91493943]
[1769850134350,0.1034,2646.4,2645.7,2.70521167]
[1769850134660,5.467292,2646.3,2645.7,0.792]
[1769850134860,5.467292,2646.3,2645.7,0.71641422]
[1769850135761,4.436741,2646.3,2645.7,0.71641422]
[1769850136067,0.1034,2646.4,2645.7,0.71641422]
[1769850137069,0.001,2646.2,2645.7,0.71641422]
[1769850138283,10.3168643,2646.5,2645.7,0.71641422]
[1769850138496,5.213192,2646.4,2645.7,0.71641422]
[1769850138782,10.3168643,2646.5,2645.7,2.13606938]
[1769850139684,0.3168643,2646.5,2645.8,13.48013736]
[1769850140401,0.3168643,2646.5,2645.8,12.91493943]
[1769850142706,0.1024,2646.7,2645.9,12.91493943]
[1769850144882,0.001,2647.1,2645.9,12.91493943]
[1769850145308,2.325756,2647.0,2645.9,14.42499241]
[1769850145514,0.001,2647.1,2645.9,14.42499241]
[1769850145685,0.001,2647.1,2646.1,12.91493943]
[1769850146028,0.001,2647.1,2646.2,12.91493943]
[1769850148209,14.09838831,2646.8,2645.9,0.56519793]
[1769850148530,14.09838831,2646.6,2645.2,12.91493943]
[1769850148684,14.09838831,2646.3,2645.2,16.68852434]
[1769850148882,12.826408,2646.2,2645.2,16.68852434]
[1769850149291,12.826408,2646.2,2646.0,0.0011]
[1769850149491,14.09838831,2646.3,2646.0,0.0011]
[1769850149696,8.923374,2646.2,2646.0,0.0011]
[1769850149884,17.650158,2646.2,2646.0,0.0011]
[1769850150082,15.952482,2646.2,2646.0,0.0011]
[1769850150283,17.771194,2646.2,2646.0,0.0011]
[1769850151008,13.788969,2646.2,2646.0,0.0011]
[1769850151218,0.1024,2646.5,2646.0,0.0011]
[1769850151383,0.1024,2646.3,2646.0,0.0011]
[1769850151583,0.1024,2646.5,2646.0,0.0011]
[1769850151808,0.1024,2646.3,2646.0,0.0011]
[1769850151984,13.99598831,2646.6,2646.0,0.0011]
[1769850152189,0.1024,2646.4,2646.0,0.0011]
[1769850152415,0.001,2646.9,2646.0,12.91603943]
[1769850152616,2.214538,2646.8,2646.0,14.20775337]
[1769850153482,2.117566,2646.8,2646.0,14.20775337]
[1769850153683,3.125236,2646.8,2646.0,14.20775337]
[1769850153883,3.125236,2646.8,2646.1,1.42077534]
[1769850154384,0.1024,2646.7,2646.0,0.0011]
[1769850154585,3.083766,2646.6,2646.0,0.0011]
[1769850154813,3.083766,2646.6,2645.9,0.48912071]
[1769850155681,0.1024,2646.7,2645.9,0.48912071]
[1769850155887,9.323273,2646.6,2645.9,0.48912071]
[1769850156088,0.1024,2646.6,2645.9,0.48912071]
[1769850156289,5.080392,2646.5,2645.9,0.48912071]
[1769850156690,0.1024,2646.6,2645.9,0.48912071]
[1769850156912,0.1024,2646.6,2645.9,1.82963672]
[1769850157735,0.1024,2646.8,2645.9,1.82963672]
[1769850158223,0.1024,2646.6,2645.9,1.82963672]
[1769850160816,0.001,2646.9,2646.0,14.21795956]
[1769850161015,0.001,2646.9,2646.2,13.72883885]
[1769850161398,0.001,2646.4,2646.2,13.72883885]
[1769850161600,0.001,2646.9,2646.2,13.72883885]
[1769850161804,0.001,2647.1,2646.3,13.72883885]
[1769850162120,0.1034,2647.7,2646.6,13.72883885]
[1769850164320,0.001,2647.7,2646.4,1.37288389]
[1769850164522,0.001,2647.7,2646.3,13.72883885]
[1769850164725,0.001,2647.7,2646.2,4.47712071]
[1769850164726,12.74169396,2647.2,2646.2,0.48912071]
[1769850164928,12.74169396,2647.2,2645.9,4.2215703]
[1769850164929,12.74169396,2647.0,2645.8,0.0011]
[1769850165108,12.74169396,2646.8,2645.8,0.0011]
[1769850165428,14.206718,2646.7,2645.8,0.0011]
[1769850165796,26.38011596,2646.7,2645.8,0.0011]
[1769850165995,0.1024,2647.0,2645.8,0.0011]
[1769850165996,12.74169396,2646.5,2645.8,0.0011]
[1769850166195,11.244761,2646.4,2645.8,0.0011]
[1769850166620,12.74169396,2646.3,2645.1,1.89273386]
[1769850166798,12.74169396,2646.2,2645.3,0.56663188]
[1769850166991,12.766003,2646.1,2645.3,0.56663188]
[1769850167195,9.579244,2646.1,2645.3,0.56663188]
[1769850167434,12.74169396,2646.2,2645.3,0.56663188]
[1769850167606,6.47189,2646.1,2645.3,0.56663188]
[1769850167806,16.47189,2646.1,2645.3,0.56663188]
[1769850168213,10.0,2646.1,2645.3,0.56663188]
[1769850168515,5.558669,2646.1,2645.3,0.56663188]
[1769850168699,12.84409396,2646.7,2645.4,14.16286053]
[1769850168902,0.792,2646.8,2645.4,14.16286053]
[1769850169124,3.875605,2646.7,2645.4,14.16286053]
[1769850169638,2.250419,2646.7,2645.4,14.16286053]
[1769850169799,12.74169396,2646.6,2645.4,0.43402168]
[1769850170000,29.18477396,2646.5,2645.4,0.43402168]
[1769850170200,14.95795,2646.4,2645.4,0.43402168]
[1769850171004,9.945376,2646.4,2645.4,0.43402168]
[1769850171220,12.74169396,2646.5,2645.4,1.22602168]
[1769850171423,9.248283,2646.4,2645.4,1.22602168]
[1769850171609,21.98997696,2646.4,2645.4,1.22602168]
[1769850171805,6.998025,2646.3,2645.4,1.22602168]
[1769850172005,10.0,2646.3,2645.4,1.22602168]
[1769850172211,0.1024,2646.5,2645.4,1.22602168]
[1769850172437,9.543977,2646.4,2645.4,1.22602168]
[1769850172735,4.288847,2646.4,2645.4,1.22602168]
[1769850172903,15.724828,2646.5,2645.6,0.0011]
[1769850173231,0.001,2646.4,2645.6,0.0011]
[1769850173598,0.001,2646.4,2645.6,13.72993885]
[1769850174698,0.001,2646.4,2645.6,13.65435307]
[1769850176931,0.32654843,2647.8,2645.5,1.55214924]
[1769850176932,0.1024,2647.1,2645.7,13.72883885]
[1769850177132,0.1024,2646.9,2645.9,13.72883885]
[1769850178238,0.1024,2647.2,2645.9,13.72883885]
[1769850178563,5.624953,2647.1,2645.9,13.72883885]
[1769850179045,0.1024,2647.3,2646.1,14.67362412]
[1769850179349,0.1024,2647.3,2646.3,13.72883885]
[1769850181226,0.001,2647.5,2646.3,14.67355216]
[1769850181439,0.001,2647.5,2646.3,13.72883885]
[1769850181637,0.001,2647.5,2646.5,13.72883885]
[1769850181822,0.001,2647.5,2646.8,13.72883885]
[1769850182519,0.001,2647.5,2646.5,13.72883885]
[1769850183563,0.001,2647.5,2646.5,14.67347469]
[1769850184326,0.1024,2647.4,2646.6,0.43912071]
[1769850184651,0.001,2647.5,2646.6,14.16635956]
[1769850185057,0.001,2647.5,2646.7,13.96240915]
[1769850185232,0.001,2647.5,2646.9,13.72883885]
[1769850185556,0.001,2647.1,2647.0,0.43752071]
[1769850185762,0.1018,2648.1,2647.0,14.16635956]
[1769850185940,30.0,2648.0,2647.1,0.43752071]
[1769850186259,30.0,2648.1,2647.1,0.43752071]
[1769850186562,0.34535756,2648.4,2647.4,13.72883885]
[1769850186939,12.72032451,2649.6,2648.0,13.28471586]
[1769850187125,23.84617251,2649.5,2648.0,14.07671586]
[1769850187330,12.72032451,2649.5,2648.1,13.51828616]
[1769850187545,12.72032451,2649.5,2648.2,14.71574448]
[1769850187751,0.1024,2649.4,2648.2,14.71574448]
[1769850187959,10.1024,2649.4,2648.2,14.71574448]
[1769850188332,10.1024,2649.4,2648.3,13.51828616]
[1769850188530,10.0,2649.7,2648.4,1.49493148]
[1769850188862,0.1024,2649.7,2648.4,1.49493148]
[1769850189057,10.1024,2649.7,2648.4,14.77964734]
[1769850189260,0.34531636,2650.3,2649.0,13.28471586]
[1769850189438,0.34531636,2650.3,2649.3,13.28471586]
[1769850190427,4.373455,2650.2,2649.1,1.72727159]
[1769850190625,12.72032451,2650.1,2649.1,1.72727159]
[1769850190825,12.72032451,2649.9,2648.3,13.51828616]
[1769850191061,13.247515,2649.8,2648.3,13.51828616]
[1769850191230,11.63175,2649.8,2648.3,13.51828616]
[1769850191561,0.34531636,2650.3,2649.2,13.28471586]
[1769850191748,12.72032451,2650.1,2649.3,1.35182862]
[1769850191938,9.625317,2650.0,2648.6,0.792]
[1769850192140,4.77103,2650.0,2648.6,0.792]
[1769850192350,10.0,2650.0,2648.8,13.28471586]
[1769850192555,3.692777,2650.2,2648.8,13.28471586]
[1769850192761,0.1024,2650.2,2649.0,13.28471586]
[1769850193143,0.34531636,2650.3,2649.4,13.28471586]
[1769850193371,12.72032451,2651.2,2649.5,13.51828616]
[1769850193622,4.027835,2651.1,2649.5,13.51828616]
[1769850193748,4.826172,2651.0,2649.7,13.28471586]
[1769850193947,0.1024,2650.9,2649.7,13.28471586]
[1769850194168,12.82272451,2650.7,2649.6,1.35182862]
[1769850194340,0.32706854,2651.8,2648.8,1.0245703]
[1769850194341,12.82272451,2650.5,2648.8,1.0245703]
[1769850194546,0.1024,2650.3,2648.8,1.0245703]
[1769850194746,6.696445,2650.2,2648.9,1.35544411]
[1769850194957,6.480794,2650.2,2648.9,14.64015997]
[1769850195555,3.734129,2650.2,2649.1,13.28471586]
[1769850195967,0.1024,2650.4,2649.1,13.28471586]
[1769850196178,0.1024,2650.2,2649.2,1.32847159]
[1769850196360,2.954807,2650.1,2649.2,1.32847159]
[1769850196567,12.72032451,2650.7,2649.3,0.2335703]
[1769850196767,0.1024,2650.5,2649.3,13.28471586]
[1769850196967,0.1024,2650.3,2649.4,1.46131875]
[1769850197889,0.001,2649.8,2649.4,1.46131875]
[1769850198185,10.0,2650.7,2649.4,1.46131875]
[1769850198186,0.1024,2650.6,2649.4,1.46131875]
[1769850198348,0.1024,2650.4,2649.4,1.46131875]
[1769850198553,0.1024,2650.4,2649.4,14.74603461]
[1769850198775,12.72032451,2651.1,2649.5,14.75931932]
[1769850198975,0.1024,2650.9,2649.5,14.75931932]
[1769850199153,10.0,2651.0,2649.6,14.4618248]
[1769850199354,12.72032451,2651.7,2650.2,13.28471586]
[1769850199587,12.72032451,2651.7,2650.3,1.32847159]
[1769850199769,2.960975,2651.6,2650.3,1.32847159]
[1769850199976,12.960975,2651.6,2650.3,1.32847159]
[1769850200172,12.960975,2651.6,2650.3,14.61318745]
[1769850200353,27.69155351,2651.7,2650.3,13.28471586]
[1769850200554,28.13456451,2651.6,2649.9,13.51828616]
[1769850200886,12.72032451,2651.9,2650.2,13.51828616]
[1769850201068,3.958898,2651.7,2650.4,13.51828616]
[1769850201271,0.1024,2651.6,2650.4,13.51828616]
[1769850202784,0.1024,2651.7,2650.4,13.51828616]
[1769850202984,0.1024,2651.7,2650.6,0.2335703]
[1769850203157,0.1024,2651.7,2650.6,17.50628616]
[1769850203356,2.699824,2651.6,2650.5,1.92405573]
[1769850203587,0.1024,2651.7,2650.4,13.51828616]
[1769850203788,2.748981,2651.6,2650.4,17.49728616]
[1769850203993,12.82272451,2651.5,2649.7,1.01919042]
[1769850204294,12.72032451,2650.7,2648.8,13.28471586]
[1769850204493,10.887627,2650.6,2649.0,0.791]
[1769850204661,12.82272451,2650.4,2648.8,13.28471586]
[1769850204976,5.6406,2650.3,2648.9,1.42285589]
[1769850205291,12.82272451,2650.2,2648.9,1.42285589]
[1769850205461,0.2999554,2651.6,2648.9,13.51828616]
[1769850205462,0.1024,2650.7,2648.9,13.51828616]
[1769850205786,0.1024,2650.6,2649.2,13.52978173]
[1769850205957,0.1024,2650.6,2649.3,13.28471586]
[1769850206162,0.1024,2651.1,2649.5,13.51828616]
[1769850206357,10.1024,2651.1,2649.6,17.26371586]
[1769850206559,10.1024,2651.1,2649.6,17.27521143]
[1769850206783,0.1024,2651.1,2649.8,13.51828616]
[1769850206976,0.1024,2651.1,2649.8,17.49728616]
[1769850207184,2.352474,2651.0,2650.0,0.2335703]
[1769850207394,2.352474,2651.0,2649.9,0.791]
[1769850207693,2.352474,2651.0,2649.4,1.75087817]
[1769850207694,12.82272451,2650.9,2649.4,1.75087817]
[1769850207876,12.82272451,2650.7,2648.5,14.2286397]
[1769850208076,0.1024,2650.5,2648.8,13.29621143]
[1769850208278,12.72032451,2650.9,2649.5,0.2335703]
[1769850208279,0.1024,2650.7,2649.5,0.2335703]
[1769850208482,12.557292,2650.7,2649.5,0.2335703]
[1769850208684,3.154729,2650.6,2649.4,0.2335703]
[1769850208890,3.154729,2650.6,2649.4,1.98444847]
[1769850209093,0.1024,2650.7,2649.4,1.98444847]
[1769850209302,3.154729,2650.6,2649.4,1.98444847]
[1769850209672,15.87505351,2650.6,2649.4,1.75087817]
[1769850209872,6.775185,2650.5,2649.1,0.2335703]
[1769850210084,16.775185,2650.5,2649.1,0.2335703]
[1769850210403,0.1024,2650.7,2649.9,0.0011]
[1769850210699,0.1024,2650.8,2649.9,0.0011]
[1769850210877,10.0,2650.8,2649.9,0.0011]
[1769850211085,0.29328928,2651.4,2649.9,0.0011]
[1769850211285,0.1024,2651.3,2649.9,0.0011]
[1769850211685,0.1024,2651.1,2649.9,0.0011]
[1769850211904,0.1024,2651.3,2649.9,0.0011]
[1769850212104,0.29328928,2651.4,2649.9,0.0011]
[1769850212411,0.1024,2651.3,2649.9,0.0011]
[1769850213105,0.1024,2651.3,2650.1,0.2335703]
[1769850213288,0.1024,2651.3,2650.2,3.979]
[1769850214005,0.29328928,2651.4,2650.2,3.979]
[1769850214204,0.29328928,2651.4,2650.3,0.2335703]
[1769850214376,0.29328928,2651.4,2650.5,0.2335703]
[1769850214573,0.29328928,2651.4,2650.5,17.49728616]
[1769850214775,0.29328928,2651.4,2650.6,1.7533854]
[1769850215405,0.29328928,2651.4,2650.7,0.2335703]
[1769850216811,0.29328928,2651.4,2650.8,0.43752071]
[1769850217118,13.69209285,2651.2,2650.1,0.42136703]
[1769850217280,30.1024,2651.3,2649.3,19.274611]
[1769850217281,13.69209285,2651.0,2649.3,13.86823512]
[1769850217889,0.1024,2651.3,2649.4,0.01149557]
[1769850218086,0.1024,2651.3,2649.6,12.93610657]
[1769850218286,13.98538213,2651.4,2649.6,12.93610657]
[1769850218287,0.29328928,2651.4,2650.0,12.93610657]
[1769850218486,0.29328928,2651.4,2650.0,12.924611]
[1769850218721,0.29328928,2651.4,2650.1,1.2925711]
[1769850219734,0.29328928,2651.4,2650.1,0.2335703]
[1769850219949,13.26152929,2651.2,2649.9,0.0011]
[1769850220126,13.26152929,2651.0,2649.9,0.0011]
[1769850222054,13.26152929,2651.0,2650.3,0.0011]
[1769850222899,13.36392929,2650.5,2648.8,0.0011]
[1769850223101,13.26152929,2650.1,2648.8,0.0011]
[1769850223729,14.443,2650.0,2648.8,0.0011]
[1769850223950,13.26152929,2650.1,2648.8,0.0011]
[1769850224240,0.1024,2650.4,2648.9,0.24506587]
[1769850224450,0.1024,2650.4,2649.0,0.2335703]
[1769850224747,0.1024,2650.4,2649.0,12.9195932]
[1769850225528,13.36392929,2650.8,2649.0,12.9195932]
[1769850225736,13.36392929,2650.8,2649.1,3.979]
[1769850225931,29.5,2650.7,2649.2,1.68985932]
[1769850226149,0.1024,2650.3,2648.9,1.31657591]
[1769850226302,13.26152929,2649.8,2648.8,0.0011]
[1769850226901,0.1024,2649.9,2648.8,0.0011]
[1769850227354,13.26152929,2651.1,2648.8,0.0011]
[1769850227530,0.1024,2650.5,2648.8,19.91215673]
[1769850227707,0.1024,2650.5,2648.8,18.96835359]
[1769850227908,13.36392929,2650.5,2648.8,18.96835359]
[1769850228430,13.36392929,2650.5,2648.8,2.06976039]
[1769850228608,13.36392929,2650.3,2648.8,0.0011]
[1769850228806,13.26152929,2649.9,2648.9,0.43752071]
[1769850229047,13.26152929,2649.9,2649.0,0.43752071]
[1769850231039,13.26152929,2649.8,2649.0,0.43752071]
[1769850231337,0.1024,2649.7,2649.0,0.43752071]
[1769850231549,13.36392929,2649.5,2647.6,12.6860229]
[1769850231714,13.36392929,2649.3,2647.6,12.6860229]
[1769850231908,0.32433584,2650.8,2647.8,12.6860229]